[Event "13th Arad Open 2020"]
[Site "Arad"]
[Date "2020.09.29"]
[Round "7.6"]
[White "Daianu, Cristian-Clement"]
[Black "Paraschiv, Paul-Alexandru"]
[Result "1-0"]
[ECO "C07"]
[WhiteElo "2224"]
[BlackElo "2061"]
[Annotator "ChessBase"]
[PlyCount "65"]
[EventDate "2020.09.25"]
[EventType "swiss"]
[EventCountry "ROU"]
[SourceTitle "playchess.com"]
[Source "ChessBase"]
[SourceQuality "1"]
[TimeControl "5400+30"]

1. e4 {[%emt 0:00:00]} e6 {[%emt 0:00:00]} 2. d4 {[%emt 0:00:00]} d5 {[%emt 0:00:00]} 3. Nd2 {[%emt 0:00:00]} c5 {[%emt 0:00:15]} 4. Ngf3 {[%emt 0:00:27]} cxd4 {[%emt 0:01:21]} 5. exd5 {[%emt 0:00:54]} Qxd5 {[%emt 0:00:12]} 6. Bc4 {[%emt 0:00:09]} Qd7 {[%emt 0:00:09]} 7. Nb3 {[%emt 0:01:15]} Nc6 {[%emt 0:00:16]} 8. Qe2 {[%emt 0:07:41]} a6 {[%emt 0:02:09]} 9. Bf4 {[%emt 0:03:02]} Bd6 {[%emt 0:07:06]} 10. Bxd6 {[%emt 0:05:45]} Qxd6 {[%emt 0:00:42]} 11. O-O-O {[%emt 0:00:03]} Nf6 {[%emt 0:06:18]} 12. Nbxd4 {[%emt 0:01:28]} Nxd4 {[%emt 0:00:10]} 13. Rxd4 {[%emt 0:00:33]} Qc5 {[%emt 0:01:31]} 14. g4 {[%emt 0:07:53]} b5 {[%emt 0:01:33]} 15. g5 {[%emt 0:00:28]} bxc4 {[%emt 0:03:28]} 16. gxf6 {[%emt 0:02:19]} gxf6 {[%emt 0:01:36]} 17. Rxc4 {[%emt 0:00:22]} Qb6 {[%emt 0:00:50]} 18. Rd1 {[%emt 0:08:09]} Rb8 {[%emt 0:06:55]} 19. b3 {[%emt 0:01:20]} Bb7 {[%emt 0:04:01]} 20. Rf4 {[%emt 0:02:41]} Bxf3 {[%emt 0:02:44]} 21. Qxf3 {[%emt 0:01:18]} f5 {[%emt 0:00:11]} 22. Rfd4 {[%emt 0:05:14]} Qc7 {[%emt 0:17:55]} 23. Qh5 {[%emt 0:05:43]} Rc8 {[%emt 0:01:47]} 24. Rc4 {[%emt 0:04:39]} Qb8 {[%emt 0:00:09]} 25. Rxc8+ {[%emt 0:02:41]} Qxc8 {[%emt 0:00:02]} 26. Qg5 {[%emt 0:00:09]} h5 {[%emt 0:01:38]} 27. h4 {[%emt 0:00:31]} Qc7 {[%emt 0:00:34]} 28. Kb1 {[%emt 0:06:07]} Qe7 {[%emt 0:02:04]} 29. Qg2 {[%emt 0:06:18]} Kf8 {[%emt 0:02:01]} 30. Qa8+ {[%emt 0:07:41]} Kg7 {[%emt 0:00:09]} 31. Rg1+ {[%emt 0:00:02]} Kh7 {[%emt 0:00:07]} 32. Qf3 {[%emt 0:00:05]} Kh6 {[%emt 0:00:34]} 33. Rg5 {[%emt 0:00:27]} 1-0

[Event "13th Arad Open 2020"]
[Site "Arad"]
[Date "2020.09.29"]
[Round "7.7"]
[White "Lehaci, Miruna-Daria"]
[Black "Suciu, Dinu-Simi"]
[Result "1/2-1/2"]
[ECO "B12"]
[WhiteElo "2223"]
[BlackElo "2050"]
[Annotator "ChessBase"]
[PlyCount "67"]
[EventDate "2020.09.25"]
[EventType "swiss"]
[EventCountry "ROU"]
[SourceTitle "playchess.com"]
[Source "ChessBase"]
[SourceQuality "1"]
[TimeControl "5400+30"]

1. e4 {[%emt 0:00:16]} c6 {[%emt 0:00:00]} 2. d4 {[%emt 0:00:03]} d5 {[%emt 0:00:00]} 3. e5 {[%emt 0:00:04]} Bf5 {[%emt 0:00:10]} 4. Nf3 {[%emt 0:00:05]} e6 {[%emt 0:00:16]} 5. Be2 {[%emt 0:00:05]} c5 {[%emt 0:03:08]} 6. O-O {[%emt 0:00:37]} Nc6 {[%emt 0:00:08]} 7. c3 {[%emt 0:00:04]} cxd4 {[%emt 0:01:27]} 8. Nxd4 {[%emt 0:00:24]} Nxd4 {[%emt 0:00:21]} 9. cxd4 {[%emt 0:00:44]} Ne7 {[%emt 0:00:09]} 10. b4 {[%emt 0:05:03]} a6 {[%emt 0:12:38]} 11. Nc3 {[%emt 0:02:29]} Nc6 {[%emt 0:06:00]} 12. a3 Be7 {[%emt 0:03:35]} 13. Be3 {[%emt 0:04:54]} O-O {[%emt 0:06:14]} 14. f4 {[%emt 0:00:59]} Bg6 {[%emt 0:03:04]} 15. Qd2 {[%emt 0:02:50]} b5 {[%emt 0:02:10]} 16. g4 {[%emt 0:10:05]} f5 {[%emt 0:00:41]} 17. Rf2 {[%emt 0:02:49]} fxg4 {[%emt 0:01:14]} 18. Bxg4 {[%emt 0:00:19]} Bf5 {[%emt 0:00:10]} 19. Bxf5 {[%emt 0:04:11]} Rxf5 {[%emt 0:03:33]} 20. Rc1 {[%emt 0:01:57]} Rc8 {[%emt 0:00:12]} 21. Qd3 {[%emt 0:04:17]} Na7 {[%emt 0:04:05]} 22. Ne2 {[%emt 0:11:55]} g6 {[%emt 0:03:17]} 23. Rcf1 {[%emt 0:05:41]} Rc4 {[%emt 0:11:04]} 24. Ng3 {[%emt 0:01:16]} Bh4 {[%emt 0:00:35]} 25. Rg2 {[%emt 0:02:20]} Bxg3 {[%emt 0:00:14]} 26. hxg3 {[%emt 0:00:05]} h5 {[%emt 0:02:14]} 27. g4 {[%emt 0:00:19]} hxg4 {[%emt 0:00:09]} 28. Qe2 {[%emt 0:01:16]} Nc6 {[%emt 0:05:18]} 29. Qxg4 {[%emt 0:00:55]} Qe8 {[%emt 0:00:06]} 30. Rd1 {[%emt 0:01:51]} Qf7 {[%emt 0:04:09]} 31. Qxg6+ {[%emt 0:04:01]} Qxg6 {[%emt 0:00:12]} 32. Rxg6+ {[%emt 0:00:03]} Kf7 {[%emt 0:00:09]} 33. Rg3 {[%emt 0:00:10]} Rh5 {[%emt 0:00:41]} 34. Bf2 {[%emt 0:03:06]} 1/2-1/2

[Event "13th Arad Open 2020"]
[Site "Arad"]
[Date "2020.09.29"]
[Round "7.8"]
[White "Magold, Filip"]
[Black "Isfan, Ioan-Marius"]
[Result "0-1"]
[ECO "B00"]
[WhiteElo "2043"]
[BlackElo "2187"]
[Annotator "ChessBase"]
[PlyCount "72"]
[EventDate "2020.09.25"]
[EventType "swiss"]
[EventCountry "ROU"]
[SourceTitle "playchess.com"]
[Source "ChessBase"]
[SourceQuality "1"]
[TimeControl "5400+30"]

1. e4 b6 2. Nf3 {[%emt 0:00:04]} Bb7 {[%emt 0:04:19]} 3. Nc3 {[%emt 0:00:18]} c5 {[%emt 0:02:19]} 4. d4 {[%emt 0:00:29]} cxd4 {[%emt 0:00:24]} 5. Nxd4 {[%emt 0:00:06]} d6 {[%emt 0:00:12]} 6. Bb5+ {[%emt 0:01:57]} Nd7 {[%emt 0:01:21]} 7. f3 {[%emt 0:00:47]} a6 {[%emt 0:04:46]} 8. Ba4 {[%emt 0:00:44]} Ngf6 {[%emt 0:01:15]} 9. Be3 {[%emt 0:00:24]} Rc8 {[%emt 0:01:23]} 10. g4 {[%emt 0:01:08]} h6 {[%emt 0:12:55]} 11. Qd2 {[%emt 0:02:10]} e6 {[%emt 0:00:20]} 12. O-O-O {[%emt 0:01:06]} Be7 {[%emt 0:06:32]} 13. h4 {[%emt 0:00:14]} d5 {[%emt 0:11:20]} 14. g5 {[%emt 0:03:08]} Nh5 {[%emt 0:03:49]} 15. g6 {[%emt 0:00:23]} Bb4 {[%emt 0:19:16]} 16. gxf7+ {[%emt 0:01:41]} Kxf7 {[%emt 0:00:06]} 17. exd5 {[%emt 0:00:50]} Bxd5 {[%emt 0:02:51]} 18. Nxe6 {[%emt 0:06:52]} Bxe6 {[%emt 0:00:31]} 19. Bxd7 {[%emt 0:00:28]} Bxc3 {[%emt 0:00:54]} 20. Bxe6+ {[%emt 0:01:19]} Kxe6 {[%emt 0:00:24]} 21. Qe2 {[%emt 0:01:50]} Ng3 {[%emt 0:09:33]} 22. Qg2 {[%emt 0:10:28]} Qc7 {[%emt 0:00:35]} 23. bxc3 {[%emt 0:00:14]} Rhd8 {[%emt 0:01:13]} 24. Bd4 {[%emt 0:09:43]} Rxd4 {[%emt 0:00:19]} 25. Rxd4 {[%emt 0:14:12]} Qxc3 {[%emt 0:00:31]} 26. Qh3+ {[%emt 0:20:51]} Kf7 {[%emt 0:00:17]} 27. Qd7+ {[%emt 0:13:03]} Kg8 {[%emt 0:00:23]} 28. Rh2 {[%emt 0:02:13]} Nf1 {[%emt 0:00:19]} 29. Qxc8+ {[%emt 0:05:36]} Qxc8 {[%emt 0:00:04]} 30. Re2 {[%emt 0:00:05]} Qc3 {[%emt 0:00:13]} 31. Rd8+ {[%emt 0:00:02]} Kh7 {[%emt 0:00:05]} 32. Kb1 {[%emt 0:00:00]} Qb4+ {[%emt 0:01:02]} 33. Ka1 {[%emt 0:00:19]} Qf4 {[%emt 0:01:19]} 34. Kb1 {[%emt 0:00:35]} Ne3 {[%emt 0:00:38]} 35. Rd3 {[%emt 0:00:16]} Nc4 {[%emt 0:00:06]} 36. Re4 {[%emt 0:00:04]} Nd2+ 0-1

[Event "13th Arad Open 2020"]
[Site "Arad"]
[Date "2020.09.29"]
[Round "7.9"]
[White "Carasca, Bogdan-Petru"]
[Black "Prisacaru, Stefan-Emilian"]
[Result "1/2-1/2"]
[ECO "A61"]
[WhiteElo "2132"]
[BlackElo "2007"]
[Annotator "ChessBase"]
[PlyCount "64"]
[EventDate "2020.09.25"]
[EventType "swiss"]
[EventCountry "ROU"]
[SourceTitle "playchess.com"]
[Source "ChessBase"]
[SourceQuality "1"]
[TimeControl "5400+30"]

1. d4 {[%emt 0:02:14]} Nf6 {[%emt 0:00:00]} 2. c4 {[%emt 0:00:16]} e6 {[%emt 0:00:00]} 3. Nc3 {[%emt 0:00:09]} c5 {[%emt 0:00:00]} 4. d5 {[%emt 0:00:06]} exd5 {[%emt 0:00:01]} 5. cxd5 {[%emt 0:00:05]} d6 {[%emt 0:00:03]} 6. Nf3 {[%emt 0:00:05]} g6 {[%emt 0:00:11]} 7. Nd2 {[%emt 0:00:06]} Na6 {[%emt 0:00:54]} 8. Nc4 {[%emt 0:00:35]} Nc7 {[%emt 0:00:24]} 9. a4 {[%emt 0:00:13]} b6 {[%emt 0:00:29]} 10. Bf4 {[%emt 0:04:05]} Ba6 {[%emt 0:00:24]} 11. e3 {[%emt 0:00:19]} Bxc4 {[%emt 0:00:59]} 12. Bxc4 {[%emt 0:00:07]} Nh5 {[%emt 0:01:04]} 13. Bg3 {[%emt 0:02:55]} Nxg3 {[%emt 0:01:05]} 14. hxg3 {[%emt 0:00:08]} Bg7 {[%emt 0:00:07]} 15. Bb5+ {[%emt 0:03:22]} Nxb5 {[%emt 0:01:06]} 16. axb5 {[%emt 0:00:08]} O-O {[%emt 0:00:10]} 17. Qd3 {[%emt 0:00:36]} Qc8 {[%emt 0:01:58]} 18. Qc4 {[%emt 0:00:35]} Qf5 {[%emt 0:03:24]} 19. O-O {[%emt 0:00:58]} Rfe8 {[%emt 0:00:30]} 20. Ra2 {[%emt 0:06:30]} Qc2 {[%emt 0:07:18]} 21. Qa4 {[%emt 0:05:36]} Qf5 {[%emt 0:01:15]} 22. g4 {[%emt 0:04:04]} Qg5 {[%emt 0:01:17]} 23. Qc4 {[%emt 0:01:56]} f5 {[%emt 0:12:40]} 24. gxf5 {[%emt 0:01:04]} gxf5 {[%emt 0:01:48]} 25. Ra4 {[%emt 0:04:17]} Kh8 {[%emt 0:02:53]} 26. g3 {[%emt 0:04:04]} Rxe3 {[%emt 0:19:12]} 27. Kg2 {[%emt 0:01:22]} Be5 {[%emt 0:01:52]} 28. Qh4 {[%emt 0:02:20]} Qxh4 {[%emt 0:07:19]} 29. Rxh4 {[%emt 0:00:09]} Rd3 {[%emt 0:00:04]} 30. Rfh1 {[%emt 0:00:08]} Kg8 {[%emt 0:00:27]} 31. Rxh7 {[%emt 0:00:26]} Bg7 {[%emt 0:00:09]} 32. R7h5 {[%emt 0:01:21]} Rf8 {[%emt 0:04:23]} 1/2-1/2

[Event "13th Arad Open 2020"]
[Site "Arad"]
[Date "2020.09.29"]
[Round "7.10"]
[White "Dobrin, Ionut-Alexandru"]
[Black "Coca, Cristi-Iulian"]
[Result "1-0"]
[ECO "E46"]
[WhiteElo "2040"]
[BlackElo "2099"]
[Annotator "ChessBase"]
[PlyCount "63"]
[EventDate "2020.09.25"]
[EventType "swiss"]
[EventCountry "ROU"]
[SourceTitle "playchess.com"]
[Source "ChessBase"]
[SourceQuality "1"]
[TimeControl "5400+30"]

1. d4 {[%emt 0:00:00]} Nf6 {[%emt 0:00:00]} 2. c4 {[%emt 0:00:00]} e6 {[%emt 0:00:00]} 3. Nc3 {[%emt 0:00:00]} Bb4 {[%emt 0:00:00]} 4. e3 {[%emt 0:00:00]} O-O {[%emt 0:00:22]} 5. Bd2 {[%emt 0:00:00]} c5 {[%emt 0:02:34]} 6. Nf3 {[%emt 0:00:38]} b6 {[%emt 0:01:15]} 7. Be2 {[%emt 0:00:40]} Bb7 {[%emt 0:00:15]} 8. a3 {[%emt 0:01:08]} Bxc3 {[%emt 0:00:14]} 9. Bxc3 {[%emt 0:00:02]} cxd4 {[%emt 0:03:43]} 10. exd4 {[%emt 0:02:19]} d5 {[%emt 0:01:38]} 11. c5 {[%emt 0:07:18]} Ne4 {[%emt 0:02:09]} 12. Rc1 {[%emt 0:00:26]} Nc6 {[%emt 0:26:27]} 13. b4 {[%emt 0:01:39]} e5 {[%emt 0:06:42]} 14. O-O {[%emt 0:10:37]} bxc5 {[%emt 0:08:03]} 15. bxc5 {[%emt 0:06:48]} Nxc3 {[%emt 0:05:14]} 16. Rxc3 {[%emt 0:00:01]} e4 {[%emt 0:01:24]} 17. Ne1 {[%emt 0:01:31]} Qa5 {[%emt 0:06:12]} 18. Qd2 {[%emt 0:01:27]} Ba6 {[%emt 0:17:40]} 19. Bxa6 {[%emt 0:01:01]} Qxa6 {[%emt 0:00:01]} 20. Nc2 {[%emt 0:00:16]} Qa4 {[%emt 0:00:53]} 21. Rd1 {[%emt 0:08:53]} Rab8 {[%emt 0:01:07]} 22. Ne3 {[%emt 0:03:14]} Rfd8 {[%emt 0:03:09]} 23. h3 {[%emt 0:00:09]} Rb7 {[%emt 0:08:15]} 24. Nf5 {[%emt 0:05:32]} Rb2 {[%emt 0:02:28]} 25. Qc1 {[%emt 0:18:28]} f6 {[%emt 0:01:44]} 26. Rg3 {[%emt 0:02:52]} g6 {[%emt 0:00:19]} 27. Kh2 {[%emt 0:08:33]} Rd7 {[%emt 0:01:09]} 28. Ne3 {[%emt 0:11:13]} Rb3 {[%emt 0:00:17]} 29. Ng4 {[%emt 0:00:40]} Rxg3 {[%emt 0:00:42]} 30. Nxf6+ {[%emt 0:00:35]} Kg7 {[%emt 0:00:09]} 31. Nxd7 {[%emt 0:00:22]} Rd3 {[%emt 0:00:25]} 32. Qf4 {[%emt 0:00:43]} 1-0

[Event "13th Arad Open 2020"]
[Site "Arad"]
[Date "2020.09.30"]
[Round "8.1"]
[White "Filip, Lucian-Ioan"]
[Black "Solodovnichenko, Yuri"]
[Result "1-0"]
[ECO "A04"]
[WhiteElo "2432"]
[BlackElo "2553"]
[Annotator "ChessBase"]
[PlyCount "55"]
[EventDate "2020.09.25"]
[EventType "swiss"]
[EventCountry "ROU"]
[SourceTitle "playchess.com"]
[Source "ChessBase"]
[SourceQuality "1"]
[TimeControl "5400+30"]

1. Nf3 {[%emt 0:04:29]} c5 {[%emt 0:00:00]} 2. c4 {[%emt 0:00:25]} g6 {[%emt 0:00:11]} 3. e4 {[%emt 0:00:24]} Bg7 {[%emt 0:00:07]} 4. d4 {[%emt 0:00:11]} Qa5+ {[%emt 0:00:06]} 5. Bd2 {[%emt 0:31:09]} Qb6 {[%emt 0:00:13]} 6. Bc3 {[%emt 0:01:35]} Nc6 {[%emt 0:00:07]} 7. d5 {[%emt 0:00:54]} Nd4 {[%emt 0:00:10]} 8. Na3 {[%emt 0:15:28]} d6 {[%emt 0:03:14]} 9. h3 {[%emt 0:00:48]} e5 {[%emt 0:10:13]} 10. dxe6 {[%emt 0:00:11]} Bxe6 {[%emt 0:03:04]} 11. Nb5 {[%emt 0:04:49]} Qc6 {[%emt 0:19:08]} 12. Nfxd4 {[%emt 0:14:31]} cxd4 {[%emt 0:00:18]} 13. Bxd4 {[%emt 0:06:30]} Nf6 {[%emt 0:02:11]} 14. Qf3 {[%emt 0:01:19]} Ke7 {[%emt 0:08:04]} 15. Nc3 {[%emt 0:04:44]} Nh5 {[%emt 0:02:43]} 16. Bxg7 {[%emt 0:01:43]} Nxg7 {[%emt 0:00:02]} 17. b3 {[%emt 0:01:28]} Rhe8 {[%emt 0:03:40]} 18. Be2 {[%emt 0:00:14]} Kf8 {[%emt 0:00:29]} 19. O-O {[%emt 0:00:06]} Qc5 {[%emt 0:01:16]} 20. Rad1 {[%emt 0:00:45]} Rad8 {[%emt 0:00:06]} 21. Rd2 {[%emt 0:00:49]} a6 {[%emt 0:03:36]} 22. Rfd1 {[%emt 0:00:29]} Re7 {[%emt 0:02:13]} 23. Qf6 {[%emt 0:01:40]} Red7 {[%emt 0:00:25]} 24. Nd5 {[%emt 0:01:05]} a5 {[%emt 0:01:10]} 25. Bg4 {[%emt 0:02:10]} Kg8 {[%emt 0:01:19]} 26. Qg5 {[%emt 0:02:25]} Ne8 {[%emt 0:03:18]} 27. Bxe6 {[%emt 0:00:25]} fxe6 {[%emt 0:00:07]} 28. Ne7+ {[%emt 0:00:04]} 1-0

[Event "13th Arad Open 2020"]
[Site "Arad"]
[Date "2020.09.30"]
[Round "8.2"]
[White "Talu, Mircea"]
[Black "Manolache, Marius"]
[Result "1-0"]
[ECO "E63"]
[WhiteElo "2351"]
[BlackElo "2541"]
[Annotator "ChessBase"]
[PlyCount "181"]
[EventDate "2020.09.25"]
[EventType "swiss"]
[EventCountry "ROU"]
[SourceTitle "playchess.com"]
[Source "ChessBase"]
[SourceQuality "1"]
[TimeControl "5400+30"]

1. d4 {[%emt 0:06:59]} Nf6 {[%emt 0:00:00]} 2. c4 {[%emt 0:00:17]} g6 {[%emt 0:00:20]} 3. g3 {[%emt 0:00:25]} Bg7 {[%emt 0:00:17]} 4. Bg2 {[%emt 0:00:27]} d6 {[%emt 0:01:02]} 5. Nc3 {[%emt 0:00:32]} O-O {[%emt 0:00:32]} 6. Nf3 {[%emt 0:00:21]} Nc6 {[%emt 0:01:48]} 7. O-O {[%emt 0:00:15]} a6 {[%emt 0:00:08]} 8. d5 {[%emt 0:02:05]} Na5 {[%emt 0:01:12]} 9. b3 {[%emt 0:00:13]} c5 {[%emt 0:06:28]} 10. dxc6 {[%emt 0:00:08]} bxc6 {[%emt 0:08:18]} 11. Bb2 {[%emt 0:02:49]} Rb8 {[%emt 0:00:19]} 12. Qd2 {[%emt 0:04:38]} c5 {[%emt 0:14:35]} 13. Rad1 {[%emt 0:20:22]} Bb7 {[%emt 0:10:23]} 14. Rfe1 {[%emt 0:01:44]} Qb6 {[%emt 0:12:03]} 15. e4 {[%emt 0:07:02]} Rfd8 {[%emt 0:12:33]} 16. Nd5 {[%emt 0:04:00]} Bxd5 {[%emt 0:00:28]} 17. Bxf6 {[%emt 0:00:06]} exf6 {[%emt 0:08:05]} 18. exd5 {[%emt 0:00:47]} Nb7 {[%emt 0:00:31]} 19. Qd3 {[%emt 0:05:52]} Qa5 {[%emt 0:02:06]} 20. h4 {[%emt 0:05:58]} h5 {[%emt 0:02:10]} 21. Bh3 {[%emt 0:02:33]} Re8 {[%emt 0:00:18]} 22. Re2 {[%emt 0:12:04]} f5 {[%emt 0:01:29]} 23. Rde1 {[%emt 0:01:57]} Kf8 {[%emt 0:03:15]} 24. Bxf5 {[%emt 0:09:32]} Rxe2 {[%emt 0:05:39]} 25. Rxe2 {[%emt 0:00:10]} Qc3 {[%emt 0:01:35]} 26. Qxc3 {[%emt 0:00:22]} Bxc3 {[%emt 0:00:09]} 27. Bd7 {[%emt 0:01:05]} Bf6 {[%emt 0:00:25]} 28. Kg2 {[%emt 0:01:51]} Rd8 {[%emt 0:02:23]} 29. Bc6 {[%emt 0:02:12]} Na5 {[%emt 0:00:05]} 30. Ba4 {[%emt 0:00:05]} Rb8 {[%emt 0:00:49]} 31. Ng5 {[%emt 0:01:25]} Bd4 {[%emt 0:00:59]} 32. f4 {[%emt 0:01:36]} Rd8 {[%emt 0:00:26]} 33. Kf3 {[%emt 0:00:56]} Rb8 {[%emt 0:00:26]} 34. g4 {[%emt 0:02:36]} hxg4+ {[%emt 0:00:23]} 35. Kxg4 {[%emt 0:00:02]} Nb7 {[%emt 0:00:07]} 36. Bc6 {[%emt 0:02:19]} Na5 {[%emt 0:00:39]} 37. Bd7 {[%emt 0:00:27]} Rd8 {[%emt 0:00:37]} 38. Ba4 {[%emt 0:00:08]} Nb7 {[%emt 0:00:34]} 39. f5 {[%emt 0:00:56]} gxf5+ {[%emt 0:00:15]} 40. Kxf5 {[%emt 0:00:01]} Be5 {[%emt 0:00:19]} 41. Nf3 {[%emt 0:00:29]} Bc3 {[%emt 0:00:32]} 42. Rg2 {[%emt 0:00:17]} Ke7 {[%emt 0:00:28]} 43. Re2+ {[%emt 0:00:05]} Kf8 {[%emt 0:00:03]} 44. h5 {[%emt 0:00:36]} Rb8 {[%emt 0:00:56]} 45. h6 {[%emt 0:01:15]} Rd8 {[%emt 0:03:07]} 46. Rg2 {[%emt 0:00:08]} Ke7 {[%emt 0:00:05]} 47. Re2+ {[%emt 0:00:01]} Kf8 {[%emt 0:00:05]} 48. Rg2 {[%emt 0:01:31]} Ke7 {[%emt 0:00:05]} 49. h7 {[%emt 0:00:08]} Rh8 {[%emt 0:00:10]} 50. Rg8 {[%emt 0:00:11]} Nd8 {[%emt 0:00:22]} 51. Ng5 {[%emt 0:00:21]} a5 {[%emt 0:00:46]} 52. Ne4 {[%emt 0:01:27]} Bd4 {[%emt 0:00:09]} 53. Nf2 {[%emt 0:01:31]} Be5 {[%emt 0:00:38]} 54. Nd3 {[%emt 0:00:30]} Bd4 {[%emt 0:00:12]} 55. Ne1 {[%emt 0:00:09]} Be5 {[%emt 0:00:38]} 56. Nc2 {[%emt 0:00:14]} Bc3 {[%emt 0:00:24]} 57. Na3 {[%emt 0:00:14]} Be5 {[%emt 0:00:11]} 58. Bc6 {[%emt 0:01:00]} Nxc6 {[%emt 0:01:11]} 59. dxc6 {[%emt 0:00:12]} Rxh7 {[%emt 0:00:11]} 60. c7 {[%emt 0:00:05]} Rh4 {[%emt 0:00:03]} 61. Re8+ {[%emt 0:01:02]} Kxe8 {[%emt 0:00:25]} 62. c8=Q+ {[%emt 0:00:04]} Ke7 {[%emt 0:00:03]} 63. Qc7+ {[%emt 0:00:05]} Ke8 {[%emt 0:00:04]} 64. Nb5 {[%emt 0:02:00]} Rh5+ {[%emt 0:01:21]} 65. Kg4 {[%emt 0:00:05]} Rh6 {[%emt 0:00:05]} 66. Qc8+ {[%emt 0:00:04]} Ke7 {[%emt 0:00:05]} 67. Nc7 {[%emt 0:00:15]} Kf6 {[%emt 0:00:30]} 68. Ne8+ {[%emt 0:00:40]} Ke7 {[%emt 0:00:09]} 69. Nc7 {[%emt 0:00:02]} Kf6 {[%emt 0:00:06]} 70. Kf3 {[%emt 0:00:32]} Rh2 {[%emt 0:00:15]} 71. Qd8+ {[%emt 0:00:46]} Kf5 {[%emt 0:02:05]} 72. Qd7+ {[%emt 0:00:05]} Kg6 {[%emt 0:00:05]} 73. Qg4+ {[%emt 0:00:15]} Kh6 {[%emt 0:00:10]} 74. Nd5 {[%emt 0:01:14]} Rxa2 {[%emt 0:01:04]} 75. Ne7 {[%emt 0:01:06]} Rh2 {[%emt 0:01:31]} 76. Qg8 {[%emt 0:01:14]} Rh3+ {[%emt 0:00:09]} 77. Ke4 {[%emt 0:00:32]} Rh4+ {[%emt 0:00:25]} 78. Kd5 {[%emt 0:00:04]} Rd4+ {[%emt 0:00:30]} 79. Kc6 {[%emt 0:00:04]} Rf4 {[%emt 0:00:04]} 80. Qf8+ {[%emt 0:00:51]} Kg5 {[%emt 0:00:36]} 81. Qg8+ {[%emt 0:00:39]} Kh4 {[%emt 0:00:29]} 82. Kb5 {[%emt 0:00:22]} Rf3 {[%emt 0:00:57]} 83. Ka4 {[%emt 0:00:24]} Kh3 {[%emt 0:01:01]} 84. Qh7+ {[%emt 0:00:41]} Kg3 {[%emt 0:00:26]} 85. Nf5+ {[%emt 0:00:38]} Kf2 {[%emt 0:00:15]} 86. Qxf7 {[%emt 0:00:26]} Ke1 {[%emt 0:00:33]} 87. Qd5 {[%emt 0:00:27]} Rf2 {[%emt 0:00:25]} 88. Nxd6 {[%emt 0:00:26]} Bd4 {[%emt 0:00:29]} 89. Ne4 {[%emt 0:00:56]} Ra2+ {[%emt 0:00:26]} 90. Kb5 {[%emt 0:00:02]} Rb2 {[%emt 0:00:16]} 91. Nxc5 {[%emt 0:00:16]} 1-0

[Event "13th Arad Open 2020"]
[Site "Arad"]
[Date "2020.09.30"]
[Round "8.3"]
[White "Ghimpu, Samuel-Timotei"]
[Black "Kozak, Adam"]
[Result "0-1"]
[ECO "A46"]
[WhiteElo "2302"]
[BlackElo "2503"]
[Annotator "ChessBase"]
[PlyCount "116"]
[EventDate "2020.09.25"]
[EventType "swiss"]
[EventCountry "ROU"]
[SourceTitle "playchess.com"]
[Source "ChessBase"]
[SourceQuality "1"]
[TimeControl "5400+30"]

1. d4 {[%emt 0:00:00]} Nf6 {[%emt 0:06:57]} 2. Nf3 {[%emt 0:00:00]} d5 {[%emt 0:03:04]} 3. g3 {[%emt 0:02:29]} Bf5 {[%emt 0:01:27]} 4. Bg2 {[%emt 0:02:59]} e6 {[%emt 0:00:13]} 5. c4 {[%emt 0:08:02]} c6 {[%emt 0:02:30]} 6. O-O {[%emt 0:00:44]} Nbd7 {[%emt 0:00:40]} 7. Qb3 {[%emt 0:09:42]} Qb6 {[%emt 0:00:44]} 8. Nc3 {[%emt 0:00:28]} Be7 {[%emt 0:01:16]} 9. Re1 {[%emt 0:13:53]} Qa6 {[%emt 0:10:19]} 10. cxd5 {[%emt 0:06:07]} exd5 {[%emt 0:01:12]} 11. Bf4 {[%emt 0:19:31]} O-O {[%emt 0:02:55]} 12. Ne5 {[%emt 0:02:33]} Nxe5 {[%emt 0:08:39]} 13. Bxe5 {[%emt 0:02:25]} Nd7 {[%emt 0:01:01]} 14. Bf4 {[%emt 0:04:45]} Rfe8 {[%emt 0:10:09]} 15. Rad1 {[%emt 0:03:24]} Qb6 {[%emt 0:04:11]} 16. Qxb6 {[%emt 0:07:10]} axb6 {[%emt 0:00:08]} 17. a3 {[%emt 0:00:43]} b5 {[%emt 0:11:33]} 18. e4 {[%emt 0:03:54]} dxe4 {[%emt 0:00:22]} 19. Bxe4 {[%emt 0:04:41]} Bxe4 {[%emt 0:02:35]} 20. Rxe4 {[%emt 0:00:06]} Bf6 {[%emt 0:01:10]} 21. d5 {[%emt 0:01:49]} Bxc3 {[%emt 0:00:27]} 22. Rxe8+ {[%emt 0:00:08]} Rxe8 {[%emt 0:00:06]} 23. dxc6 {[%emt 0:00:39]} bxc6 {[%emt 0:00:09]} 24. bxc3 {[%emt 0:00:08]} Nb6 {[%emt 0:00:16]} 25. Be3 {[%emt 0:01:47]} Nd5 {[%emt 0:01:22]} 26. Bd4 {[%emt 0:03:40]} f6 {[%emt 0:01:55]} 27. Rc1 {[%emt 0:00:45]} Kf7 {[%emt 0:05:56]} 28. f3 {[%emt 0:00:36]} Ra8 {[%emt 0:03:40]} 29. c4 {[%emt 0:00:35]} bxc4 {[%emt 0:00:07]} 30. Rxc4 {[%emt 0:00:02]} Rxa3 {[%emt 0:00:10]} 31. Rxc6 {[%emt 0:00:10]} Rxf3 {[%emt 0:00:04]} 32. Rd6 {[%emt 0:01:00]} Ne7 {[%emt 0:00:10]} 33. Bf2 {[%emt 0:00:53]} h5 {[%emt 0:02:38]} 34. Ra6 {[%emt 0:00:28]} Rc3 {[%emt 0:01:16]} 35. Ra7 {[%emt 0:00:37]} Ke6 {[%emt 0:00:02]} 36. Ra5 {[%emt 0:00:21]} Nd5 {[%emt 0:03:08]} 37. Ra4 {[%emt 0:00:36]} Kf5 {[%emt 0:03:05]} 38. h3 {[%emt 0:00:31]} Rc2 {[%emt 0:02:16]} 39. Rd4 {[%emt 0:00:33]} Nc3 {[%emt 0:04:30]} 40. Rf4+ {[%emt 0:00:08]} Kg6 {[%emt 0:00:22]} 41. Kf1 {[%emt 0:00:33]} Nb5 {[%emt 0:02:28]} 42. Rb4 {[%emt 0:00:51]} Nc7 {[%emt 0:00:04]} 43. Re4 {[%emt 0:00:26]} Nb5 {[%emt 0:00:26]} 44. Rb4 {[%emt 0:00:32]} Nd6 {[%emt 0:00:02]} 45. Rd4 {[%emt 0:00:12]} Nf7 {[%emt 0:00:35]} 46. Rd3 {[%emt 0:00:43]} Ng5 {[%emt 0:00:17]} 47. g4 {[%emt 0:00:33]} hxg4 {[%emt 0:00:50]} 48. hxg4 {[%emt 0:00:01]} Rc4 {[%emt 0:00:01]} 49. Rd7 {[%emt 0:00:45]} Rxg4 {[%emt 0:00:15]} 50. Bc5 {[%emt 0:00:02]} Rc4 {[%emt 0:00:32]} 51. Bf8 {[%emt 0:00:14]} Ne6 {[%emt 0:00:05]} 52. Ba3 {[%emt 0:00:08]} Rc2 {[%emt 0:00:59]} 53. Re7 {[%emt 0:00:37]} Kf5 {[%emt 0:00:07]} 54. Rb7 {[%emt 0:00:08]} Rc6 {[%emt 0:03:31]} 55. Kf2 {[%emt 0:00:46]} g5 {[%emt 0:00:08]} 56. Bb2 {[%emt 0:01:47]} Rd6 {[%emt 0:02:30]} 57. Ke3 {[%emt 0:00:34]} Nf4 {[%emt 0:00:24]} 58. Rb3 {[%emt 0:00:32]} Rb6 {[%emt 0:01:24]} 0-1